[Event "7. Arber-Senioren-Cup 2019"]
[Site "Bodenmais"]
[Date "2019.07.31"]
[Round "5.9"]
[White "Trinkl, Andreas"]
[Black "Korte, Markus"]
[Result "0-1"]
[ECO "C26"]
[WhiteElo "1620"]
[BlackElo "2028"]
[Annotator "NA"]
[PlyCount "131"]
[EventDate "2019.07.27"]
[EventType "swiss"]
[EventCountry "GER"]
[SourceTitle "playchess.com"]
[Source "ChessBase"]
[SourceQuality "1"]
[TimeControl "60/7800+30:0"]

1. e4 {[%emt 0:00:00]} e5 {[%emt 0:00:00]} 2. Bc4 {[%emt 0:01:18]} Nf6 {[%emt 0:00:09]} 3. Nc3 {[%emt 0:00:09]} Bc5 {[%emt 0:02:58]} 4. d3 {[%emt 0:01:14]} c6 {[%emt 0:01:52]} 5. Nf3 {[%emt 0:02:25]} d6 {[%emt 0:04:17]} 6. O-O {[%emt 0:00:39]} O-O {[%emt 0:10:27]} 7. h3 {[%emt 0:00:55]} h6 {[%emt 0:01:19]} 8. Qe2 {[%emt 0:05:14]} Qe7 {[%emt 0:09:44]} 9. Bb3 {[%emt 0:02:15]} Be6 {[%emt 0:01:51]} 10. Be3 {[%emt 0:13:03]} Bb4 {[%emt 0:04:41]} 11. Nh2 {[%emt 0:09:00]} d5 {[%emt 0:06:38]} 12. Bd2 Nbd7 {[%emt 0:03:20]} 13. exd5 {[%emt 0:25:47]} cxd5 {[%emt 0:05:46]} 14. Rad1 {[%emt 0:07:54]} Rac8 {[%emt 0:03:16]} 15. f4 {[%emt 0:07:05]} exf4 {[%emt 0:15:13]} 16. Rxf4 {[%emt 0:10:54]} Bd6 {[%emt 0:07:00]} 17. Rff1 {[%emt 0:01:10]} Bc5+ {[%emt 0:07:41]} 18. Kh1 {[%emt 0:00:54]} Rfe8 {[%emt 0:05:31]} 19. Rde1 {[%emt 0:04:48]} Qd6 {[%emt 0:06:57]} 20. Bf4 {[%emt 0:05:53]} Qc6 {[%emt 0:05:26]} 21. Qf3 {[%emt 0:05:55]} Bb4 {[%emt 0:04:43]} 22. Re2 {[%emt 0:04:37]} a6 {[%emt 0:02:42]} 23. Nd1 {[%emt 0:04:37]} Bd6 {[%emt 0:02:05]} 24. Bxd6 {[%emt 0:07:28]} Qxd6 {[%emt 0:00:08]} 25. Rfe1 {[%emt 0:01:22]} Nf8 {[%emt 0:05:08]} 26. c3 {[%emt 0:02:49]} Ng6 {[%emt 0:00:18]} 27. Nf1 {[%emt 0:01:58]} Red8 {[%emt 0:05:33]} 28. d4 {[%emt 0:01:56]} Ne4 {[%emt 0:04:22]} 29. Nf2 {[%emt 0:00:45]} Ng5 {[%emt 0:07:59]} 30. Qg3 {[%emt 0:01:47]} Nf4 {[%emt 0:01:44]} 31. Re3 {[%emt 0:01:06]} Bf5 {[%emt 0:01:30]} 32. Re5 {[%emt 0:01:52]} Nh5 {[%emt 0:00:41]} 33. Qh2 Be6 34. Bxd5 {[%emt 0:03:02]} Kh7 {[%emt 0:03:10]} 35. Bxe6 {[%emt 0:00:49]} fxe6 {[%emt 0:00:23]} 36. Ne4 {[%emt 0:00:58]} Nxe4 {[%emt 0:00:11]} 37. R1xe4 {[%emt 0:00:43]} Nf6 {[%emt 0:00:11]} 38. Re2 {[%emt 0:00:59]} Re8 {[%emt 0:00:32]} 39. Nd2 {[%emt 0:02:40]} b5 40. a3 {[%emt 0:00:30]} Nd7 {[%emt 0:01:18]} 41. R5e3 {[%emt 0:00:19]} Qd5 {[%emt 0:00:25]} 42. Nf3 {[%emt 0:00:19]} a5 {[%emt 0:00:48]} 43. Ne5 {[%emt 0:00:35]} Nf6 {[%emt 0:00:15]} 44. Qg1 {[%emt 0:00:21]} b4 {[%emt 0:00:06]} 45. axb4 {[%emt 0:00:31]} axb4 {[%emt 0:00:05]} 46. Qe1 {[%emt 0:00:21]} b3 {[%emt 0:00:16]} 47. Qb1+ {[%emt 0:00:47]} Kg8 {[%emt 0:00:15]} 48. Qg6 {[%emt 0:00:38]} Re7 {[%emt 0:00:30]} 49. Nd3 {[%emt 0:00:28]} Ra8 {[%emt 0:00:25]} 50. Nb4 {[%emt 0:01:19]} Qd6 {[%emt 0:00:30]} 51. Re1 {[%emt 0:00:14]} Ra5 {[%emt 0:01:58]} 52. Qg3 {[%emt 0:01:37]} Qd7 {[%emt 0:00:49]} 53. Re5 {[%emt 0:00:26]} Rxe5 {[%emt 0:01:08]} 54. Qxe5 {[%emt 0:00:04]} Qe8 {[%emt 0:00:31]} 55. Ra1 {[%emt 0:00:23]} Qg6 {[%emt 0:00:12]} 56. Kh2 {[%emt 0:01:28]} h5 {[%emt 0:01:14]} 57. Nc6 {[%emt 0:00:51]} Re8 {[%emt 0:00:22]} 58. Qe1 {[%emt 0:00:16]} Ne4 {[%emt 0:00:18]} 59. Ne5 {[%emt 0:00:10]} Qf5 {[%emt 0:00:28]} 60. Qf1 {[%emt 0:00:20]} Nf2 {[%emt 0:00:21]} 61. Nf3 {[%emt 2:10:37]} Qf4+ {[%emt 2:10:45]} 62. Kg1 {[%emt 0:00:31]} Ne4 {[%emt 0:00:19]} 63. Ra7 {[%emt 0:00:44]} Qe3+ {[%emt 0:00:14]} 64. Kh2 {[%emt 0:00:37]} Rf8 {[%emt 0:00:21]} 65. Ra1 Re8 66. Qc1 0-1

[Event "7. Arber-Senioren-Cup 2019"]
[Site "Bodenmais"]
[Date "2019.07.31"]
[Round "5.10"]
[White "Riedl, Maximilian"]
[Black "Hamlack, Heinz"]
[Result "0-1"]
[ECO "B10"]
[WhiteElo "1905"]
[BlackElo "1986"]
[Annotator "NA"]
[PlyCount "94"]
[EventDate "2019.07.27"]
[EventType "swiss"]
[EventCountry "GER"]
[SourceTitle "playchess.com"]
[Source "ChessBase"]
[SourceQuality "1"]
[TimeControl "60/7800+30:0"]

1. e4 {[%emt 0:00:00]} c6 {[%emt 0:00:00]} 2. d3 {[%emt 0:00:00]} d5 {[%emt 0:00:12]} 3. Nd2 {[%emt 0:00:00]} dxe4 {[%emt 0:01:47]} 4. dxe4 {[%emt 0:00:05]} Nf6 {[%emt 0:00:53]} 5. Bd3 {[%emt 0:00:22]} Nbd7 {[%emt 0:01:22]} 6. Qe2 {[%emt 0:03:30]} Ne5 {[%emt 0:01:42]} 7. Ngf3 {[%emt 0:02:14]} Nxd3+ {[%emt 0:02:51]} 8. Qxd3 {[%emt 0:00:49]} Qxd3 {[%emt 0:04:31]} 9. cxd3 {[%emt 0:00:12]} Bg4 {[%emt 0:03:28]} 10. h3 {[%emt 0:00:28]} Bh5 {[%emt 0:00:13]} 11. Ke2 {[%emt 0:02:28]} e6 {[%emt 0:00:29]} 12. g4 {[%emt 0:01:15]} Bg6 {[%emt 0:00:03]} 13. Nc4 {[%emt 0:01:06]} Be7 {[%emt 0:09:18]} 14. b3 {[%emt 0:00:39]} a5 {[%emt 0:03:28]} 15. Bb2 {[%emt 0:01:30]} O-O {[%emt 0:01:07]} 16. Nce5 {[%emt 0:02:10]} a4 {[%emt 0:01:15]} 17. Nxg6 {[%emt 0:00:36]} hxg6 {[%emt 0:00:20]} 18. Nd2 {[%emt 0:01:05]} Ra6 {[%emt 0:02:38]} 19. f3 {[%emt 0:01:09]} Rfa8 {[%emt 0:00:55]} 20. Bc3 {[%emt 0:03:23]} c5 {[%emt 0:04:11]} 21. bxa4 {[%emt 0:07:38]} Rxa4 {[%emt 0:00:19]} 22. Rhb1 {[%emt 0:00:16]} R8a7 {[%emt 0:04:24]} 23. a3 {[%emt 0:00:30]} Nd7 {[%emt 0:01:34]} 24. Nc4 {[%emt 0:00:32]} R4a6 {[%emt 0:09:12]} 25. Rb3 {[%emt 0:01:49]} Bd8 {[%emt 0:02:37]} 26. Rab1 {[%emt 0:04:52]} b6 {[%emt 0:00:52]} 27. Bb2 {[%emt 0:00:16]} Bc7 {[%emt 0:00:40]} 28. Bc1 {[%emt 0:03:13]} Kf8 {[%emt 0:15:43]} 29. f4 {[%emt 0:00:31]} Ke7 {[%emt 0:02:04]} 30. h4 {[%emt 0:00:08]} Ra8 {[%emt 0:05:46]} 31. f5 {[%emt 0:00:31]} gxf5 {[%emt 0:01:18]} 32. exf5 {[%emt 0:01:36]} exf5 {[%emt 0:00:49]} 33. gxf5 {[%emt 0:01:30]} f6 {[%emt 0:00:38]} 34. h5 {[%emt 0:00:47]} Rh8 {[%emt 0:01:18]} 35. h6 {[%emt 0:00:11]} gxh6 {[%emt 0:00:16]} 36. Be3 {[%emt 0:00:25]} Raa8 {[%emt 0:03:11]} 37. d4 {[%emt 0:00:12]} h5 {[%emt 0:11:14]} 38. dxc5 {[%emt 0:06:42]} bxc5 {[%emt 0:00:15]} 39. Rb7 {[%emt 0:01:44]} Kd8 {[%emt 0:06:16]} 40. R7b5 {[%emt 0:11:32]} Ra4 {[%emt 0:04:48]} 41. Kd3 {[%emt 0:00:55]} Rg8 {[%emt 0:01:12]} 42. Bxc5 {[%emt 0:03:35]} Rg3+ {[%emt 0:01:11]} 43. Ne3 {[%emt 0:03:50]} Nxc5+ {[%emt 0:00:30]} 44. Rxc5 {[%emt 0:00:50]} Rxa3+ {[%emt 0:00:02]} 45. Kc4 {[%emt 0:04:14]} Rgxe3 {[%emt 0:00:49]} 46. Rd1+ {[%emt 0:04:27]} Kc8 {[%emt 0:00:16]} 47. Rc1 {[%emt 0:01:14]} Re4+ {[%emt 0:00:41]} 0-1

[Event "7. Arber-Senioren-Cup 2019"]
[Site "Bodenmais"]
[Date "2019.07.31"]
[Round "5.11"]
[White "Steiger, Michael"]
[Black "Halli, Gerhard"]
[Result "1/2-1/2"]
[ECO "E08"]
[WhiteElo "2016"]
[BlackElo "1955"]
[Annotator "NA"]
[PlyCount "52"]
[EventDate "2019.07.27"]
[EventType "swiss"]
[EventCountry "GER"]
[SourceTitle "playchess.com"]
[Source "ChessBase"]
[SourceQuality "1"]
[TimeControl "60/7800+30:0"]

1. Nf3 {[%emt 0:00:00]} d5 {[%emt 0:01:14]} 2. c4 {[%emt 0:00:00]} e6 {[%emt 0:03:28]} 3. g3 {[%emt 0:00:35]} Nf6 {[%emt 0:01:38]} 4. Bg2 {[%emt 0:01:14]} Be7 {[%emt 0:00:46]} 5. d4 {[%emt 0:01:12]} Nbd7 {[%emt 0:02:27]} 6. Qc2 {[%emt 0:04:35]} O-O {[%emt 0:01:18]} 7. O-O {[%emt 0:02:04]} Re8 {[%emt 0:02:12]} 8. Nbd2 {[%emt 0:01:35]} Bf8 {[%emt 0:05:03]} 9. e4 {[%emt 0:01:57]} Nxe4 {[%emt 0:01:21]} 10. Nxe4 {[%emt 0:00:07]} dxe4 {[%emt 0:00:18]} 11. Qxe4 {[%emt 0:00:14]} Nf6 {[%emt 0:00:10]} 12. Qc2 {[%emt 0:02:27]} c5 {[%emt 0:05:41]} 13. dxc5 {[%emt 0:09:10]} Bxc5 {[%emt 0:00:11]} 14. Bg5 {[%emt 0:00:22]} h6 {[%emt 0:01:18]} 15. Rad1 {[%emt 0:00:56]} Qe7 {[%emt 0:01:14]} 16. Bf4 {[%emt 0:01:49]} a5 {[%emt 0:03:12]} 17. Ne5 {[%emt 0:08:30]} Ra6 {[%emt 0:07:27]} 18. h4 {[%emt 0:18:26]} Rb6 {[%emt 0:14:23]} 19. Rd3 {[%emt 0:07:59]} Nd7 {[%emt 0:15:32]} 20. Rfd1 {[%emt 0:03:07]} Nxe5 {[%emt 0:00:22]} 21. Bxe5 {[%emt 0:00:03]} f6 {[%emt 0:01:06]} 22. Bc3 {[%emt 0:03:24]} Ra6 {[%emt 0:05:38]} 23. Qd2 {[%emt 0:05:02]} Qc7 {[%emt 0:01:48]} 24. Kh2 {[%emt 0:15:05]} Be7 {[%emt 0:06:43]} 25. b3 {[%emt 0:00:56]} a4 {[%emt 0:00:16]} 26. Be4 {[%emt 0:01:57]} f5 1/2-1/2

[Event "7. Arber-Senioren-Cup 2019"]
[Site "Bodenmais"]
[Date "2019.07.31"]
[Round "5.12"]
[White "Steinbach, Peter"]
[Black "Supplieth, Peter"]
[Result "1-0"]
[ECO "D00"]
[WhiteElo "1958"]
[BlackElo "1880"]
[Annotator "NA"]
[PlyCount "47"]
[EventDate "2019.07.27"]
[EventType "swiss"]
[EventCountry "GER"]
[SourceTitle "playchess.com"]
[Source "ChessBase"]
[SourceQuality "1"]
[TimeControl "60/7800+30:0"]

1. d4 {[%emt 0:00:00]} d5 {[%emt 0:00:00]} 2. Bf4 {[%emt 0:00:00]} Nf6 {[%emt 0:00:47]} 3. e3 {[%emt 0:00:04]} e6 {[%emt 0:01:47]} 4. Nd2 {[%emt 0:01:27]} Bd6 {[%emt 0:00:21]} 5. Bg3 {[%emt 0:00:40]} b6 {[%emt 0:02:22]} 6. Ngf3 {[%emt 0:03:52]} Bb7 {[%emt 0:05:34]} 7. Bb5+ {[%emt 0:06:08]} c6 {[%emt 0:00:41]} 8. Bd3 {[%emt 0:00:06]} Qe7 {[%emt 0:00:34]} 9. c4 {[%emt 0:04:29]} Nbd7 {[%emt 0:01:54]} 10. Ne5 {[%emt 0:01:19]} Rc8 {[%emt 0:01:44]} 11. Qa4 {[%emt 0:04:24]} a5 {[%emt 0:03:03]} 12. O-O {[%emt 0:03:44]} O-O {[%emt 0:00:23]} 13. cxd5 {[%emt 0:07:58]} exd5 {[%emt 0:01:31]} 14. f4 {[%emt 0:06:32]} c5 {[%emt 0:02:40]} 15. Bh4 {[%emt 0:06:13]} c4 {[%emt 0:11:51]} 16. Bf5 {[%emt 0:00:21]} Bc6 {[%emt 0:03:41]} 17. Nxc6 {[%emt 0:13:13]} Qxe3+ {[%emt 0:00:08]} 18. Rf2 {[%emt 0:00:08]} Rc7 {[%emt 0:04:37]} 19. Ne5 {[%emt 0:01:55]} Nb8 {[%emt 0:04:42]} 20. Qd1 {[%emt 0:11:57]} Qxd4 {[%emt 0:00:12]} 21. Bxf6 {[%emt 0:00:56]} Bc5 {[%emt 0:02:46]} 22. Bxh7+ {[%emt 0:13:50]} Kxh7 {[%emt 0:10:16]} 23. Qh5+ {[%emt 0:00:10]} Kg8 {[%emt 0:00:05]} 24. Qg5 {[%emt 0:00:10]} 1-0

[Event "7. Arber-Senioren-Cup 2019"]
[Site "Bodenmais"]
[Date "2019.07.31"]
[Round "5.13"]
[White "Fleuch, Hans-Juergen"]
[Black "Gottwald, Helmut"]
[Result "1-0"]
[ECO "D05"]
[WhiteElo "1951"]
[BlackElo "1579"]
[Annotator "NA"]
[PlyCount "99"]
[EventDate "2019.07.27"]
[EventType "swiss"]
[EventCountry "GER"]
[SourceTitle "playchess.com"]
[Source "ChessBase"]
[SourceQuality "1"]
[TimeControl "60/7800+30:0"]

1. Nf3 {[%emt 0:00:00]} Nf6 {[%emt 0:01:11]} 2. d4 {[%emt 0:00:00]} e6 {[%emt 0:00:56]} 3. e3 {[%emt 0:01:02]} c5 {[%emt 0:01:31]} 4. Bd3 {[%emt 0:00:48]} d5 {[%emt 0:01:09]} 5. c3 {[%emt 0:05:46]} Nc6 {[%emt 0:02:40]} 6. Nbd2 {[%emt 0:01:05]} cxd4 {[%emt 0:03:18]} 7. exd4 {[%emt 0:00:43]} Be7 {[%emt 0:04:47]} 8. O-O {[%emt 0:00:55]} O-O {[%emt 0:03:06]} 9. Re1 {[%emt 0:00:41]} h6 {[%emt 0:01:34]} 10. Nf1 {[%emt 0:02:20]} Nh7 {[%emt 0:02:26]} 11. Ne5 {[%emt 0:01:00]} a6 {[%emt 0:04:33]} 12. f4 {[%emt 0:14:39]} Nf6 {[%emt 0:02:34]} 13. h3 {[%emt 0:13:19]} Qb6 {[%emt 0:01:07]} 14. Bc2 {[%emt 0:03:21]} Na5 {[%emt 0:03:47]} 15. Ne3 {[%emt 0:05:59]} Ne4 {[%emt 0:04:01]} 16. c4 {[%emt 0:10:31]} Bh4 {[%emt 0:01:27]} 17. Rf1 {[%emt 0:16:48]} Bf2+ {[%emt 0:07:15]} 18. Rxf2 {[%emt 0:01:04]} Nxf2 {[%emt 0:00:14]} 19. Kxf2 {[%emt 0:00:13]} Nxc4 {[%emt 0:02:20]} 20. Qd3 {[%emt 0:06:51]} f5 {[%emt 0:02:25]} 21. N3xc4 {[%emt 0:02:33]} dxc4 {[%emt 0:00:36]} 22. Nxc4 {[%emt 0:00:08]} Qd8 {[%emt 0:02:02]} 23. g3 {[%emt 0:10:11]} b5 {[%emt 0:02:02]} 24. Ne3 {[%emt 0:01:05]} Bb7 {[%emt 0:03:08]} 25. Bb3 {[%emt 0:03:43]} Bd5 {[%emt 0:04:24]} 26. Nxd5 {[%emt 0:01:36]} exd5 {[%emt 0:00:18]} 27. Qf3 {[%emt 0:00:15]} Rc8 {[%emt 0:03:21]} 28. Qxd5+ {[%emt 0:01:59]} Kh8 {[%emt 0:02:18]} 29. Qxd8 {[%emt 0:00:27]} Rfxd8 {[%emt 0:02:01]} 30. Be3 {[%emt 0:00:41]} a5 {[%emt 0:02:42]} 31. Kf3 {[%emt 0:07:26]} a4 {[%emt 0:01:04]} 32. Be6 {[%emt 0:01:06]} Rc2 {[%emt 0:01:50]} 33. Rb1 {[%emt 0:00:25]} Rf8 {[%emt 0:02:46]} 34. a3 {[%emt 0:03:48]} Rf6 {[%emt 0:07:21]} 35. d5 {[%emt 0:01:20]} Rh2 {[%emt 0:00:26]} 36. Bd4 {[%emt 0:00:51]} Rg6 {[%emt 0:00:20]} 37. Bxf5 {[%emt 0:00:21]} Rd6 {[%emt 0:00:59]} 38. Be6 {[%emt 0:01:49]} Rd2 {[%emt 0:00:15]} 39. Be5 {[%emt 0:01:24]} R6xd5 {[%emt 0:03:06]} 40. Bxd5 {[%emt 0:00:29]} Rxd5 {[%emt 0:00:05]} 41. Bc3 {[%emt 0:00:22]} Kg8 42. Re1 {[%emt 0:02:35]} Kf7 {[%emt 0:02:13]} 43. Re5 {[%emt 0:00:15]} Rd3+ {[%emt 0:02:36]} 44. Kg4 {[%emt 0:00:01]} b4 {[%emt 0:02:12]} 45. Bxb4 {[%emt 0:00:26]} Rd7 {[%emt 0:00:40]} 46. Ra5 {[%emt 0:00:27]} g5 {[%emt 0:00:50]} 47. fxg5 {[%emt 0:00:22]} Rd4+ {[%emt 0:01:01]} 48. Kf5 {[%emt 0:00:22]} hxg5 {[%emt 0:00:31]} 49. Kxg5 {[%emt 0:00:10]} Rd3 {[%emt 0:01:03]} 50. Ra7+ {[%emt 0:00:07] Ke7 Rxe7} 1-0

[Event "7. Arber-Senioren-Cup 2019"]
[Site "Bodenmais"]
[Date "2019.07.31"]
[Round "5.14"]
[White "Augustin, Christian"]
[Black "Busch, Joerg"]
[Result "1/2-1/2"]
[ECO "A01"]
[WhiteElo "1971"]
[BlackElo "1851"]
[Annotator "NA"]
[PlyCount "38"]
[EventDate "2019.07.27"]
[EventType "swiss"]
[EventCountry "GER"]
[SourceTitle "playchess.com"]
[Source "ChessBase"]
[SourceQuality "1"]
[TimeControl "60/7800+30:0"]

1. b3 {[%emt 0:00:00]} d5 {[%emt 0:00:00]} 2. e3 {[%emt 0:00:00]} Bf5 {[%emt 0:00:45]} 3. Bb2 {[%emt 0:00:14]} e6 {[%emt 0:00:24]} 4. Ne2 {[%emt 0:00:21]} Nf6 {[%emt 0:01:18]} 5. d3 {[%emt 0:00:40]} Nbd7 {[%emt 0:01:40]} 6. Nd2 {[%emt 0:01:19]} c6 {[%emt 0:00:54]} 7. a3 {[%emt 0:00:13]} Qc7 {[%emt 0:04:48]} 8. g3 {[%emt 0:01:57]} Be7 {[%emt 0:08:07]} 9. Bg2 {[%emt 0:01:42]} O-O {[%emt 0:00:20]} 10. h3 {[%emt 0:00:18]} Rad8 {[%emt 0:07:12]} 11. O-O {[%emt 0:03:42]} h6 {[%emt 0:03:09]} 12. Re1 {[%emt 0:22:45]} Rfe8 {[%emt 0:00:59]} 13. Rc1 {[%emt 0:07:39]} Qb8 {[%emt 0:10:16]} 14. Nf3 {[%emt 0:07:41]} Bg6 {[%emt 0:05:02]} 15. b4 {[%emt 0:04:45]} a6 {[%emt 0:03:28]} 16. Qd2 {[%emt 0:02:32]} Bd6 {[%emt 0:07:25]} 17. Red1 {[%emt 0:06:38]} Be7 {[%emt 0:07:25]} 18. Ned4 {[%emt 0:07:05]} Nb6 {[%emt 0:03:00]} 19. Bf1 e5 1/2-1/2

[Event "7. Arber-Senioren-Cup 2019"]
[Site "Bodenmais"]
[Date "2019.07.31"]
[Round "5.15"]
[White "Oberhofer, Max"]
[Black "Bauer, Werner"]
[Result "1-0"]
[ECO "A41"]
[WhiteElo "2187"]
[BlackElo "1881"]
[Annotator "NA"]
[PlyCount "57"]
[EventDate "2019.07.27"]
[EventType "swiss"]
[EventCountry "GER"]
[SourceTitle "playchess.com"]
[Source "ChessBase"]
[SourceQuality "1"]
[TimeControl "60/7800+30:0"]

1. d4 {[%emt 0:00:00]} d6 {[%emt 0:05:24]} 2. Nf3 {[%emt 0:00:30]} f5 {[%emt 0:00:30]} 3. c4 {[%emt 0:01:25]} Nf6 {[%emt 0:00:30]} 4. Nc3 {[%emt 0:00:30]} g6 {[%emt 0:00:30]} 5. g3 {[%emt 0:00:46]} Bg7 {[%emt 0:00:30]} 6. Bg2 {[%emt 0:00:30]} O-O {[%emt 0:00:30]} 7. O-O {[%emt 0:00:37]} e6 {[%emt 0:01:00]} 8. Re1 {[%emt 0:01:42]} Nbd7 {[%emt 0:04:23]} 9. b3 Qe7 {[%emt 0:08:40]} 10. Ba3 {[%emt 0:20:22]} Ne4 {[%emt 0:03:34]} 11. Rc1 {[%emt 0:11:20]} Nxc3 {[%emt 0:04:45]} 12. Rxc3 {[%emt 0:00:30]} e5 {[%emt 0:07:21]} 13. dxe5 {[%emt 0:03:05]} Nxe5 {[%emt 0:00:30]} 14. Rc2 {[%emt 0:02:37]} Rd8 {[%emt 0:14:06]} 15. Nxe5 {[%emt 0:04:27]} Bxe5 {[%emt 0:00:33]} 16. f4 {[%emt 0:01:42]} Bf6 {[%emt 0:02:46]} 17. e4 {[%emt 0:00:30]} Qg7 {[%emt 0:07:18]} 18. Rce2 {[%emt 0:04:36]} fxe4 {[%emt 0:03:22]} 19. Qd5+ {[%emt 0:04:05]} Kh8 {[%emt 0:01:00]} 20. Qxe4 {[%emt 0:05:06]} Bd4+ {[%emt 0:08:18]} 21. Kh1 {[%emt 0:00:47]} Bg4 {[%emt 0:10:15]} 22. Bf3 {[%emt 0:03:50]} Bxf3+ {[%emt 0:10:28]} 23. Qxf3 {[%emt 0:00:30]} Bf6 {[%emt 0:07:40]} 24. Qxb7 {[%emt 0:00:30]} Rab8 {[%emt 0:00:30]} 25. Qc6 {[%emt 0:01:09]} h5 {[%emt 0:00:46]} 26. Re6 {[%emt 0:02:09]} Rb6 {[%emt 0:03:14]} 27. Qf3 {[%emt 0:02:11]} Ra6 {[%emt 0:01:26]} 28. Bb4 {[%emt 0:02:49]} Rxa2 {[%emt 0:00:30]} 29. Rxf6 {[%emt 0:00:30]} 1-0

[Event "7. Arber-Senioren-Cup 2019"]
[Site "Bodenmais"]
[Date "2019.07.31"]
[Round "5.16"]
[White "Zwetz, Anita"]
[Black "Benischek, Wolfgang"]
[Result "0-1"]
[ECO "A45"]
[WhiteElo "1828"]
[BlackElo "2022"]
[Annotator "NA"]
[PlyCount "70"]
[EventDate "2019.07.27"]
[EventType "swiss"]
[EventCountry "GER"]
[SourceTitle "playchess.com"]
[Source "ChessBase"]
[SourceQuality "1"]
[TimeControl "60/7800+30:0"]

1. d4 {[%emt 0:00:00]} Nf6 {[%emt 0:00:00]} 2. Bg5 {[%emt 0:00:00]} Ne4 {[%emt 0:02:04]} 3. Bf4 {[%emt 0:00:00]} c5 {[%emt 0:02:38]} 4. dxc5 {[%emt 0:00:00]} Qa5+ {[%emt 0:02:28]} 5. c3 {[%emt 0:00:00]} Qxc5 {[%emt 0:00:51]} 6. Be3 {[%emt 0:02:56]} Qc7 {[%emt 0:00:31]} 7. g3 {[%emt 0:03:29]} e6 {[%emt 0:01:26]} 8. Nd2 {[%emt 0:02:57]} Nf6 {[%emt 0:00:29]} 9. Bg2 {[%emt 0:00:52]} d5 {[%emt 0:01:47]} 10. Ngf3 {[%emt 0:05:40]} Nc6 {[%emt 0:00:42]} 11. Nb3 {[%emt 0:03:25]} e5 {[%emt 0:03:12]} 12. Bg5 {[%emt 0:03:15]} Be6 {[%emt 0:03:37]} 13. Bxf6 {[%emt 0:16:19]} gxf6 {[%emt 0:00:02]} 14. Qc2 {[%emt 0:00:55]} Be7 {[%emt 0:01:41]} 15. e4 {[%emt 0:07:20]} Nb4 {[%emt 0:13:23]} 16. Qe2 {[%emt 0:02:58]} dxe4 {[%emt 0:04:04]} 17. Qxe4 {[%emt 0:00:26]} f5 {[%emt 0:03:44]} 18. Qb1 {[%emt 0:01:54]} e4 {[%emt 0:05:24]} 19. Nfd2 {[%emt 0:13:29]} Nd3+ {[%emt 0:02:11]} 20. Ke2 {[%emt 0:02:10]} Bc4 {[%emt 0:12:06]} 21. Nxc4 {[%emt 0:00:32]} Qxc4 {[%emt 0:00:14]} 22. Bf1 {[%emt 0:05:11]} Rd8 {[%emt 0:06:37]} 23. Nd2 {[%emt 0:04:55]} Qc5 {[%emt 0:01:23]} 24. h3 {[%emt 0:06:28]} Qxf2+ {[%emt 0:00:25]} 25. Kd1 {[%emt 0:00:03]} Bg5 {[%emt 0:03:12]} 26. Be2 {[%emt 0:05:54]} Qe3 {[%emt 0:13:27]} 27. Nc4 {[%emt 0:05:38]} Nf4+ {[%emt 0:06:13]} 28. Kc2 {[%emt 0:00:55]} Qxe2+ {[%emt 0:01:26]} 29. Kb3 {[%emt 0:00:00]} b5 {[%emt 0:02:53]} 30. Na5 {[%emt 0:02:37]} Nd3 {[%emt 0:04:05]} 31. Nc6 {[%emt 0:02:28]} Rd6 {[%emt 0:08:01]} 32. Na5 {[%emt 0:07:19]} Ra6 {[%emt 0:00:53]} 33. Nb7 {[%emt 0:00:09]} O-O {[%emt 0:03:51]} 34. Rf1 {[%emt 0:05:33]} Rb8 {[%emt 0:00:41]} 35. Rxf5 {[%emt 0:00:02]} Nc1+ {[%emt 0:00:38]} 0-1

[Event "7. Arber-Senioren-Cup 2019"]
[Site "Bodenmais"]
[Date "2019.07.31"]
[Round "5.17"]
[White "Peglau, Markus"]
[Black "Schwalb, Manfred"]
[Result "1/2-1/2"]
[ECO "A37"]
[WhiteElo "1849"]
[BlackElo "1965"]
[Annotator "NA"]
[PlyCount "33"]
[EventDate "2019.07.27"]
[EventType "swiss"]
[EventCountry "GER"]
[SourceTitle "playchess.com"]
[Source "ChessBase"]
[SourceQuality "1"]
[TimeControl "60/7800+30:0"]

1. g3 {[%emt 0:00:00]} g6 {[%emt 0:00:11]} 2. Bg2 {[%emt 0:00:00]} Bg7 {[%emt 0:00:09]} 3. c4 {[%emt 0:00:00]} c5 {[%emt 0:02:15]} 4. Nc3 {[%emt 0:02:20]} Nc6 {[%emt 0:00:13]} 5. Nf3 {[%emt 0:00:12]} e6 {[%emt 0:00:24]} 6. O-O {[%emt 0:01:14]} Nge7 {[%emt 0:00:10]} 7. d3 {[%emt 0:03:13]} O-O {[%emt 0:00:27]} 8. Bg5 {[%emt 0:03:45]} h6 {[%emt 0:00:17]} 9. Bd2 {[%emt 0:01:32]} d5 {[%emt 0:01:33]} 10. cxd5 {[%emt 0:02:22]} exd5 11. Rc1 Be6 {[%emt 0:05:59]} 12. a3 {[%emt 0:12:31]} Rc8 {[%emt 0:01:53]} 13. Qa4 {[%emt 0:03:47]} Qd7 {[%emt 0:05:10]} 14. b4 b6 {[%emt 0:21:44]} 15. bxc5 {[%emt 0:17:53]} bxc5 {[%emt 0:00:03]} 16. Rb1 {[%emt 0:04:45]} Rb8 {[%emt 0:06:45]} 17. Rfc1 {[%emt 0:10:35]} 1/2-1/2

[Event "7. Arber-Senioren-Cup 2019"]
[Site "Bodenmais"]
[Date "2019.07.31"]
[Round "5.18"]
[White "Schmidt, Matthias"]
[Black "Meckel, Helmut"]
[Result "1/2-1/2"]
[ECO "A97"]
[WhiteElo "2020"]
[BlackElo "1804"]
[Annotator "NA"]
[PlyCount "38"]
[EventDate "2019.07.27"]
[EventType "swiss"]
[EventCountry "GER"]
[SourceTitle "playchess.com"]
[Source "ChessBase"]
[SourceQuality "1"]
[TimeControl "60/7800+30:0"]

1. d4 {[%emt 0:00:00]} e6 {[%emt 0:10:33]} 2. Nf3 {[%emt 0:01:18]} f5 {[%emt 0:00:11]} 3. g3 {[%emt 0:01:02]} Nf6 {[%emt 0:00:05]} 4. Bg2 {[%emt 0:00:18]} Be7 {[%emt 0:00:23]} 5. c4 {[%emt 0:00:26]} d6 {[%emt 0:00:28]} 6. Nc3 {[%emt 0:01:16]} O-O {[%emt 0:00:14]} 7. O-O {[%emt 0:01:16]} Qe8 {[%emt 0:02:01]} 8. Re1 {[%emt 0:07:10]} Qh5 {[%emt 0:05:23]} 9. e4 {[%emt 0:16:20]} fxe4 {[%emt 0:03:40]} 10. Nxe4 {[%emt 0:01:12]} Nc6 {[%emt 0:01:06]} 11. Nfg5 {[%emt 0:09:00]} Qxd1 {[%emt 0:01:10]} 12. Rxd1 {[%emt 0:00:04]} h6 {[%emt 0:00:56]} 13. Nxf6+ {[%emt 0:00:57]} Bxf6 {[%emt 0:03:27]} 14. Bxc6 {[%emt 0:04:16]} bxc6 {[%emt 0:02:50]} 15. Ne4 {[%emt 0:00:37]} Kh7 {[%emt 0:04:11]} 16. Nxf6+ {[%emt 0:01:22]} gxf6 {[%emt 0:00:54]} 17. Re1 {[%emt 0:01:05]} f5 {[%emt 0:01:33]} 18. Bf4 {[%emt 0:03:24]} Rf7 {[%emt 0:01:54]} 19. c5 {[%emt 0:02:37]} d5 {[%emt 0:00:55]} 1/2-1/2